[Event "*** SCC Grand Prix: Titled Tuesday Blitz"]
[Site "Chess.com"]
[Date "2020.07.07"]
[Round "4"]
[White "Jumbo"]
[Black "alexrustemov"]
[Result "0-1"]
[WhiteElo "2889"]
[BlackElo "2735"]
[TimeControl "180+1"]
[EndTime "10:41:03 PDT"]
[Termination "alexrustemov won on time"]

1. d4 {[%clk 0:02:57.3]} 1... d5 {[%clk 0:03:00.3]} 2. c4 {[%clk 0:02:57.1]}
2... e6 {[%clk 0:02:57.7]} 3. Nf3 {[%clk 0:02:56.8]} 3... Nf6 {[%clk 0:02:57.3]}
4. g3 {[%clk 0:02:56.2]} 4... Bb4+ {[%clk 0:02:56.6]} 5. Bd2 {[%clk 0:02:55.9]}
5... Be7 {[%clk 0:02:56.5]} 6. Bg2 {[%clk 0:02:56.3]} 6... O-O {[%clk
0:02:57.2]} 7. O-O {[%clk 0:02:56.6]} 7... c6 {[%clk 0:02:57.4]} 8. Qc2 {[%clk
0:02:57.2]} 8... Nbd7 {[%clk 0:02:56.5]} 9. Rd1 {[%clk 0:02:56.7]} 9... b6
{[%clk 0:02:55.7]} 10. b3 {[%clk 0:02:54.5]} 10... Bb7 {[%clk 0:02:54.7]} 11.
Nc3 {[%clk 0:02:54.5]} 11... Rc8 {[%clk 0:02:54.1]} 12. e4 {[%clk 0:02:54.9]}
12... h6 {[%clk 0:02:39]} 13. e5 {[%clk 0:01:55.2]} 13... Ne8 {[%clk 0:02:38.3]}
14. Bf4 {[%clk 0:01:51.3]} 14... Nc7 {[%clk 0:02:36.3]} 15. Qd2 {[%clk
0:01:51.4]} 15... c5 {[%clk 0:02:34.9]} 16. Bxh6 {[%clk 0:01:39.3]} 16... gxh6
{[%clk 0:02:28.5]} 17. Qxh6 {[%clk 0:01:40.2]} 17... Re8 {[%clk 0:02:23.6]} 18.
h4 {[%clk 0:01:26.5]} 18... Bf8 {[%clk 0:01:48.4]} 19. Qh5 {[%clk 0:01:21]}
19... Qe7 {[%clk 0:01:45.4]} 20. cxd5 {[%clk 0:00:43.7]} 20... Nxd5 {[%clk
0:01:42.5]} 21. Ne4 {[%clk 0:00:43]} 21... Bg7 {[%clk 0:01:04.3]} 22. Nfg5
{[%clk 0:00:37.8]} 22... Nf8 {[%clk 0:00:59.4]} 23. Nd6 {[%clk 0:00:34.9]} 23...
f6 {[%clk 0:00:53.5]} 24. Nxc8 {[%clk 0:00:19.9]} 24... Rxc8 {[%clk 0:00:53.5]}
25. exf6 {[%clk 0:00:19.7]} 25... Nxf6 {[%clk 0:00:54.3]} 26. Qe2 {[%clk
0:00:18.4]} 26... Bxg2 {[%clk 0:00:53.2]} 27. Kxg2 {[%clk 0:00:19.3]} 27... cxd4
{[%clk 0:00:53.7]} 28. Re1 {[%clk 0:00:18.1]} 28... Re8 {[%clk 0:00:51.2]} 29.
Qc4 {[%clk 0:00:12.4]} 29... N6h7 {[%clk 0:00:39.3]} 30. Nf3 {[%clk 0:00:10.9]}
30... Qd6 {[%clk 0:00:29.3]} 31. Rad1 {[%clk 0:00:10.5]} 31... Rd8 {[%clk
0:00:26.7]} 32. Rd3 {[%clk 0:00:09.8]} 32... Qd5 {[%clk 0:00:20.2]} 33. Qxd5
{[%clk 0:00:05.4]} 33... Rxd5 {[%clk 0:00:21.1]} 34. Nd2 {[%clk 0:00:04.3]}
34... e5 {[%clk 0:00:20.7]} 35. g4 {[%clk 0:00:04.1]} 35... Nf6 {[%clk
0:00:18.8]} 36. Kg3 {[%clk 0:00:04.1]} 36... Rc5 {[%clk 0:00:18.7]} 37. g5
{[%clk 0:00:04]} 37... Nh5+ {[%clk 0:00:18.7]} 38. Kg4 {[%clk 0:00:04.5]} 38...
Nf4 {[%clk 0:00:19]} 39. Rf3 {[%clk 0:00:05]} 39... Rc2 {[%clk 0:00:19.1]} 40.
Ne4 {[%clk 0:00:05.4]} 40... Rxa2 {[%clk 0:00:15.4]} 41. h5 {[%clk 0:00:05.7]}
41... N8e6 {[%clk 0:00:14.8]} 42. h6 {[%clk 0:00:05.8]} 42... Bh8 {[%clk
0:00:14.7]} 43. Kf5 {[%clk 0:00:05.9]} 43... Kf7 {[%clk 0:00:14.1]} 44. Nd6+
{[%clk 0:00:01.6]} 44... Ke7 {[%clk 0:00:13.6]} 45. Nc4 {[%clk 0:00:02.1]} 45...
d3 {[%clk 0:00:11.2]} 46. Nxe5 {[%clk 0:00:02.7]} 46... d2 {[%clk 0:00:09.3]}
47. Rd1 {[%clk 0:00:01.9]} 47... Bxe5 {[%clk 0:00:08.8]} 48. Kxe5 {[%clk
0:00:02.8]} 48... Ng6+ {[%clk 0:00:08.1]} 49. Kf5 {[%clk 0:00:02.6]} 49... Nh4+
{[%clk 0:00:07.9]} 0-1

[Event "*** SCC Grand Prix: Titled Tuesday Blitz"]
[Site "Chess.com"]
[Date "2020.07.07"]
[Round "4"]
[White "Alexandercs432"]
[Black "mikheeva86"]
[Result "0-1"]
[WhiteElo "2131"]
[BlackElo "1925"]
[TimeControl "180+1"]
[EndTime "10:41:06 PDT"]
[Termination "mikheeva86 won by checkmate"]

1. e4 {[%clk 0:03:00.3]} 1... e5 {[%clk 0:02:58.8]} 2. Nf3 {[%clk 0:02:59.9]}
2... Nc6 {[%clk 0:02:58.1]} 3. Bb5 {[%clk 0:02:59.4]} 3... Nd4 {[%clk
0:02:57.1]} 4. Ba4 {[%clk 0:02:55.3]} 4... Nxf3+ {[%clk 0:02:53.6]} 5. Qxf3
{[%clk 0:02:56.2]} 5... Qf6 {[%clk 0:02:53.2]} 6. Qe2 {[%clk 0:02:56.3]} 6...
Bc5 {[%clk 0:02:51]} 7. O-O {[%clk 0:02:55.6]} 7... Ne7 {[%clk 0:02:49.3]} 8. c3
{[%clk 0:02:54.3]} 8... O-O {[%clk 0:02:46.9]} 9. d3 {[%clk 0:02:54]} 9... d6
{[%clk 0:02:37]} 10. Be3 {[%clk 0:02:52.9]} 10... Bb6 {[%clk 0:02:34.7]} 11. Nd2
{[%clk 0:02:52.2]} 11... Ng6 {[%clk 0:02:23.2]} 12. Rad1 {[%clk 0:02:42.7]}
12... Nf4 {[%clk 0:02:20.3]} 13. Bxf4 {[%clk 0:02:38.5]} 13... Qxf4 {[%clk
0:02:18.1]} 14. Qf3 {[%clk 0:02:29.8]} 14... Qxf3 {[%clk 0:02:12.3]} 15. Nxf3
{[%clk 0:02:30.7]} 15... Bg4 {[%clk 0:02:10.5]} 16. Rfe1 {[%clk 0:02:26.6]}
16... f5 {[%clk 0:02:07.4]} 17. Bb3+ {[%clk 0:02:20.2]} 17... Kh8 {[%clk
0:02:04.4]} 18. h3 {[%clk 0:01:58.3]} 18... fxe4 {[%clk 0:01:59.3]} 19. hxg4
{[%clk 0:01:36.4]} 19... exf3 {[%clk 0:01:58.1]} 20. g3 {[%clk 0:01:26.2]} 20...
Rf6 {[%clk 0:01:53.8]} 21. d4 {[%clk 0:01:18.3]} 21... exd4 {[%clk 0:01:52]} 22.
cxd4 {[%clk 0:01:16.2]} 22... Rg6 {[%clk 0:01:51.8]} 23. Re4 {[%clk 0:01:04.3]}
23... Rf8 {[%clk 0:01:47.6]} 24. Rde1 {[%clk 0:01:03.4]} 24... h6 {[%clk
0:01:27.1]} 25. R1e3 {[%clk 0:00:56.2]} 25... c6 {[%clk 0:01:19.7]} 26. Bd1
{[%clk 0:00:41.6]} 26... d5 {[%clk 0:01:14.2]} 27. Re8 {[%clk 0:00:40]} 27...
Rf6 {[%clk 0:01:04.2]} 28. Rxf8+ {[%clk 0:00:36.4]} 28... Rxf8 {[%clk
0:01:02.3]} 29. Rxf3 {[%clk 0:00:36.4]} 29... Rxf3 {[%clk 0:01:00.7]} 30. Bxf3
{[%clk 0:00:37.3]} 30... Bxd4 {[%clk 0:01:01]} 31. b3 {[%clk 0:00:37.2]} 31...
Kg8 {[%clk 0:01:00.1]} 32. Kf1 {[%clk 0:00:36]} 32... Kf7 {[%clk 0:00:59.3]} 33.
Ke2 {[%clk 0:00:35.8]} 33... Ke6 {[%clk 0:00:58.8]} 34. Bg2 {[%clk 0:00:35.6]}
34... Bb6 {[%clk 0:00:49.5]} 35. f4 {[%clk 0:00:33.4]} 35... c5 {[%clk 0:00:47]}
36. a4 {[%clk 0:00:24.1]} 36... Bc7 {[%clk 0:00:30.5]} 37. Kd3 {[%clk
0:00:23.2]} 37... a6 {[%clk 0:00:28.2]} 38. Ke2 {[%clk 0:00:22.8]} 38... b5
{[%clk 0:00:26.5]} 39. axb5 {[%clk 0:00:23.7]} 39... axb5 {[%clk 0:00:25.5]} 40.
Kd3 {[%clk 0:00:24.2]} 40... Bb6 {[%clk 0:00:18.9]} 41. Ke2 {[%clk 0:00:23.5]}
41... c4 {[%clk 0:00:19]} 42. bxc4 {[%clk 0:00:24.4]} 42... dxc4 {[%clk
0:00:18.2]} 43. Bc6 {[%clk 0:00:22.4]} 43... b4 {[%clk 0:00:16.5]} 44. Bb5
{[%clk 0:00:17.5]} 44... Kd5 {[%clk 0:00:16.1]} 45. f5 {[%clk 0:00:15.9]} 45...
Kd4 {[%clk 0:00:17]} 46. Kd2 {[%clk 0:00:15.4]} 46... Bc7 {[%clk 0:00:16.8]} 47.
Bd7 {[%clk 0:00:13.2]} 47... Bxg3 {[%clk 0:00:17]} 48. Be6 {[%clk 0:00:13.8]}
48... b3 {[%clk 0:00:15.8]} 49. Kc1 {[%clk 0:00:13.7]} 49... Kc3 {[%clk
0:00:14.5]} 50. Kb1 {[%clk 0:00:13.9]} 50... Kb4 {[%clk 0:00:11.8]} 51. Bf7
{[%clk 0:00:14.8]} 51... c3 {[%clk 0:00:11.2]} 52. Be6 {[%clk 0:00:15]} 52...
c2+ {[%clk 0:00:11.3]} 53. Kb2 {[%clk 0:00:14.6]} 53... Be5+ {[%clk 0:00:11.5]}
54. Kc1 {[%clk 0:00:14.5]} 54... Bf4+ {[%clk 0:00:12.4]} 55. Kb2 {[%clk
0:00:14.3]} 55... c1=Q# {[%clk 0:00:12.2]} 0-1

[Event "*** SCC Grand Prix: Titled Tuesday Blitz"]
[Site "Chess.com"]
[Date "2020.07.07"]
[Round "4"]
[White "Sofiia_Hryzlova"]
[Black "reniite"]
[Result "0-1"]
[WhiteElo "2127"]
[BlackElo "1911"]
[TimeControl "180+1"]
[EndTime "10:41:15 PDT"]
[Termination "reniite won on time"]

1. c4 {[%clk 0:03:00.9]} 1... Nf6 {[%clk 0:02:57]} 2. Nc3 {[%clk 0:02:59.9]}
2... e6 {[%clk 0:02:56.9]} 3. g3 {[%clk 0:02:59.2]} 3... d5 {[%clk 0:02:55]} 4.
Bg2 {[%clk 0:02:55.1]} 4... Be7 {[%clk 0:02:53.7]} 5. e3 {[%clk 0:02:53.3]} 5...
O-O {[%clk 0:02:48.5]} 6. b3 {[%clk 0:02:53.5]} 6... dxc4 {[%clk 0:02:45.7]} 7.
bxc4 {[%clk 0:02:52.8]} 7... c6 {[%clk 0:02:45.2]} 8. d4 {[%clk 0:02:49.1]} 8...
Nbd7 {[%clk 0:02:44.9]} 9. Nge2 {[%clk 0:02:48.4]} 9... Nb6 {[%clk 0:02:44.7]}
10. Qb3 {[%clk 0:02:43.7]} 10... c5 {[%clk 0:02:36.5]} 11. O-O {[%clk
0:02:38.1]} 11... Bd7 {[%clk 0:02:33.5]} 12. Rd1 {[%clk 0:02:28]} 12... cxd4
{[%clk 0:02:32.4]} 13. exd4 {[%clk 0:02:26.8]} 13... Qc7 {[%clk 0:02:32.7]} 14.
c5 {[%clk 0:02:23.6]} 14... Nbd5 {[%clk 0:02:31.8]} 15. Nxd5 {[%clk 0:02:17.6]}
15... Nxd5 {[%clk 0:02:30]} 16. Bxd5 {[%clk 0:01:47.2]} 16... exd5 {[%clk
0:02:30.9]} 17. Qxd5 {[%clk 0:01:47.4]} 17... Bc6 {[%clk 0:02:29.6]} 18. Qh5
{[%clk 0:01:47.4]} 18... Rad8 {[%clk 0:02:18.3]} 19. Bf4 {[%clk 0:01:44.7]}
19... Qd7 {[%clk 0:02:05.7]} 20. Nc3 {[%clk 0:01:34.7]} 20... g6 {[%clk
0:01:57]} 21. Qh6 {[%clk 0:01:30.7]} 21... Rfe8 {[%clk 0:01:55.4]} 22. d5 {[%clk
0:01:26]} 22... Bf8 {[%clk 0:01:39.9]} 23. Qg5 {[%clk 0:00:54.1]} 23... Ba4
{[%clk 0:01:32.8]} 24. Rd4 {[%clk 0:00:48.5]} 24... Bc2 {[%clk 0:01:29.8]} 25.
Rd2 {[%clk 0:00:40.4]} 25... Qf5 {[%clk 0:01:23.3]} 26. Qxf5 {[%clk 0:00:37.3]}
26... Bxf5 {[%clk 0:01:21.3]} 27. d6 {[%clk 0:00:35.9]} 27... Bg7 {[%clk
0:01:20]} 28. Rc1 {[%clk 0:00:35.4]} 28... Bh3 {[%clk 0:01:12.2]} 29. Nd5 {[%clk
0:00:31.9]} 29... Re4 {[%clk 0:00:51.8]} 30. f3 {[%clk 0:00:27.3]} 30... Ra4
{[%clk 0:00:49.6]} 31. Ne7+ {[%clk 0:00:21.7]} 31... Kf8 {[%clk 0:00:48.5]} 32.
Kf2 {[%clk 0:00:20.2]} 32... Be6 {[%clk 0:00:46.6]} 33. Rcc2 {[%clk 0:00:20]}
33... Bf6 {[%clk 0:00:44.9]} 34. Nd5 {[%clk 0:00:17.4]} 34... Bg7 {[%clk
0:00:43.6]} 35. Nc3 {[%clk 0:00:15.7]} 35... Rc4 {[%clk 0:00:40.6]} 36. Ne4
{[%clk 0:00:14.5]} 36... Rxc2 {[%clk 0:00:36.9]} 37. Rxc2 {[%clk 0:00:15.4]}
37... h6 {[%clk 0:00:35.7]} 38. Ke3 {[%clk 0:00:13.6]} 38... f5 {[%clk
0:00:35.1]} 39. Nf2 {[%clk 0:00:12.4]} 39... g5 {[%clk 0:00:35]} 40. Nd3 {[%clk
0:00:05.7]} 40... gxf4+ {[%clk 0:00:34.7]} 41. Nxf4 {[%clk 0:00:06.1]} 41... Kf7
{[%clk 0:00:35.1]} 42. h4 {[%clk 0:00:05.4]} 42... Be5 {[%clk 0:00:30]} 43. h5
{[%clk 0:00:05.1]} 43... Bd7 {[%clk 0:00:21]} 44. Rg2 {[%clk 0:00:02.6]} 44...
Bc6 {[%clk 0:00:20.5]} 45. Ng6 {[%clk 0:00:02]} 45... Bc3 {[%clk 0:00:16.5]} 46.
Rf2 {[%clk 0:00:02.6]} 46... Bb4 {[%clk 0:00:16.4]} 47. Kd3 {[%clk 0:00:03.1]}
47... Bxc5 {[%clk 0:00:16.4]} 48. Rc2 {[%clk 0:00:04]} 48... Bxd6 {[%clk
0:00:16]} 49. Kc4 {[%clk 0:00:04.9]} 49... Be7 {[%clk 0:00:13.8]} 50. Rb2 {[%clk
0:00:05.4]} 50... b6 {[%clk 0:00:13]} 51. Kc3 {[%clk 0:00:04.7]} 51... Bd5
{[%clk 0:00:13]} 52. Re2 {[%clk 0:00:04.6]} 52... Bf6+ {[%clk 0:00:13]} 53. Kb4
{[%clk 0:00:02.8]} 53... Bd4 {[%clk 0:00:12.2]} 54. Nf4 {[%clk 0:00:02.9]} 54...
Bf6 {[%clk 0:00:11]} 55. Ka3 {[%clk 0:00:02.3]} 55... a5 {[%clk 0:00:11]} 56.
Rd2 {[%clk 0:00:02.6]} 56... Be7+ {[%clk 0:00:10]} 57. Kb2 {[%clk 0:00:01.9]}
57... Bc6 {[%clk 0:00:08.3]} 58. Re2 {[%clk 0:00:02.1]} 58... Bf6+ {[%clk
0:00:07.9]} 59. Kb3 {[%clk 0:00:01.2]} 59... Bxf3 {[%clk 0:00:07.1]} 0-1

[Event "*** SCC Grand Prix: Titled Tuesday Blitz"]
[Site "Chess.com"]
[Date "2020.07.07"]
[Round "4"]
[White "Nemsko"]
[Black "Savva09022009"]
[Result "0-1"]
[WhiteElo "2299"]
[BlackElo "2459"]
[TimeControl "180+1"]
[EndTime "10:41:17 PDT"]
[Termination "Savva09022009 won on time"]

1. e4 {[%clk 0:03:00.9]} 1... c5 {[%clk 0:02:59.7]} 2. Nf3 {[%clk 0:02:59.3]}
2... Nc6 {[%clk 0:02:59.9]} 3. d4 {[%clk 0:02:59.4]} 3... cxd4 {[%clk
0:03:00.6]} 4. Nxd4 {[%clk 0:03:00.3]} 4... Nf6 {[%clk 0:03:01.1]} 5. Nc3 {[%clk
0:02:59.9]} 5... d6 {[%clk 0:03:01.7]} 6. Bg5 {[%clk 0:02:57.5]} 6... e6 {[%clk
0:03:01.5]} 7. Qd2 {[%clk 0:02:54.8]} 7... h6 {[%clk 0:03:00.4]} 8. Bh4 {[%clk
0:02:43]} 8... Nxe4 {[%clk 0:02:59.9]} 9. Nxe4 {[%clk 0:02:38.1]} 9... Qxh4
{[%clk 0:02:55.6]} 10. Nxd6+ {[%clk 0:02:04.6]} 10... Bxd6 {[%clk 0:02:53.3]}
11. Nxc6 {[%clk 0:02:04.7]} 11... Qe4+ {[%clk 0:02:52.6]} 12. Be2 {[%clk
0:02:01.9]} 12... Qxc6 {[%clk 0:02:49.7]} 13. O-O-O {[%clk 0:02:02.4]} 13... Be7
{[%clk 0:02:37.7]} 14. Bf3 {[%clk 0:02:01.5]} 14... Bg5 {[%clk 0:02:28.1]} 15.
Bxc6+ {[%clk 0:01:58.6]} 15... bxc6 {[%clk 0:02:29]} 16. f4 {[%clk 0:01:54.2]}
16... Be7 {[%clk 0:02:28.6]} 17. Qc3 {[%clk 0:01:52.7]} 17... O-O {[%clk
0:01:54.9]} 18. Qxc6 {[%clk 0:01:45.8]} 18... Rb8 {[%clk 0:01:51.5]} 19. Qc7
{[%clk 0:01:40.7]} 19... Rb7 {[%clk 0:01:50.2]} 20. Qc6 {[%clk 0:01:33.4]} 20...
Rb6 {[%clk 0:01:47.4]} 21. Qf3 {[%clk 0:01:15.8]} 21... Bf6 {[%clk 0:01:40.9]}
22. b3 {[%clk 0:01:14.2]} 22... Bb7 {[%clk 0:01:39.7]} 23. Qg3 {[%clk
0:01:13.7]} 23... Rc8 {[%clk 0:01:38.3]} 24. Rd2 {[%clk 0:01:00.9]} 24... Be4
{[%clk 0:01:37.7]} 25. c4 {[%clk 0:00:45.2]} 25... a5 {[%clk 0:01:35.7]} 26. Re1
{[%clk 0:00:44]} 26... Bf5 {[%clk 0:01:33.8]} 27. Qe3 {[%clk 0:00:44.2]} 27...
Rbc6 {[%clk 0:01:29.7]} 28. h3 {[%clk 0:00:37.9]} 28... h5 {[%clk 0:01:28.3]}
29. g4 {[%clk 0:00:22.1]} 29... hxg4 {[%clk 0:01:21.8]} 30. hxg4 {[%clk
0:00:23]} 30... Bxg4 {[%clk 0:01:22.5]} 31. Rg1 {[%clk 0:00:23]} 31... Bf5
{[%clk 0:01:23.4]} 32. Qa7 {[%clk 0:00:19]} 32... a4 {[%clk 0:01:20]} 33. Qxa4
{[%clk 0:00:18.7]} 33... Bc3 {[%clk 0:01:12.4]} 34. Rh2 {[%clk 0:00:18.6]} 34...
Rd6 {[%clk 0:00:54.7]} 35. Rgh1 {[%clk 0:00:18.5]} 35... g6 {[%clk 0:00:52.4]}
36. Qa7 {[%clk 0:00:18.2]} 36... Bg7 {[%clk 0:00:47.6]} 37. Qe7 {[%clk
0:00:17.6]} 37... Ra6 {[%clk 0:00:43.2]} 38. Qd7 {[%clk 0:00:13.8]} 38... Rca8
{[%clk 0:00:41.3]} 39. Rd1 {[%clk 0:00:10.9]} 39... Rxa2 {[%clk 0:00:36]} 40.
Rxa2 {[%clk 0:00:10.4]} 40... Rxa2 {[%clk 0:00:36.3]} 41. Qd8+ {[%clk
0:00:11.1]} 41... Bf8 {[%clk 0:00:35.8]} 42. c5 {[%clk 0:00:11.1]} 42... Rc2+
{[%clk 0:00:34.6]} 43. Kb1 {[%clk 0:00:11.6]} 43... Rd2+ {[%clk 0:00:34.1]} 44.
Ka1 {[%clk 0:00:10.3]} 44... Rxd8 {[%clk 0:00:20.2]} 45. Rxd8 {[%clk 0:00:11.2]}
45... Kg7 {[%clk 0:00:20]} 46. c6 {[%clk 0:00:11.7]} 46... Be7 {[%clk
0:00:15.1]} 47. c7 {[%clk 0:00:12.3]} 47... e5 {[%clk 0:00:15.3]} 48. Re8 {[%clk
0:00:10.9]} 48... exf4 {[%clk 0:00:10.4]} 49. Rxe7 {[%clk 0:00:09.1]} 49... g5
{[%clk 0:00:09.7]} 50. b4 {[%clk 0:00:06.4]} 50... f3 {[%clk 0:00:07.6]} 51. Re1
{[%clk 0:00:05.8]} 51... g4 {[%clk 0:00:06.9]} 52. b5 {[%clk 0:00:05.6]} 52...
g3 {[%clk 0:00:06]} 53. b6 {[%clk 0:00:06]} 53... Bc8 {[%clk 0:00:06.2]} 54. Re8
{[%clk 0:00:01.7]} 54... f2 {[%clk 0:00:05.4]} 55. Rxc8 {[%clk 0:00:02.6]} 55...
f1=Q+ {[%clk 0:00:05.4]} 56. Kb2 {[%clk 0:00:03.3]} 56... Qe2+ {[%clk
0:00:05.1]} 57. Kc3 {[%clk 0:00:03.7]} 57... Qe5+ {[%clk 0:00:05]} 58. Kb4
{[%clk 0:00:03.1]} 58... Qd6+ {[%clk 0:00:04.5]} 59. Ka5 {[%clk 0:00:02.7]}
59... Qc5+ {[%clk 0:00:01.9]} 60. Ka6 {[%clk 0:00:03]} 60... Qc4+ {[%clk
0:00:02.4]} 61. Kb7 {[%clk 0:00:03]} 61... Qe4+ {[%clk 0:00:02]} 62. Kb8 {[%clk
0:00:03.2]} 62... Qa4 {[%clk 0:00:01.5]} 0-1

[Event "*** SCC Grand Prix: Titled Tuesday Blitz"]
[Site "Chess.com"]
[Date "2020.07.07"]
[Round "4"]
[White "vinniethepooh"]
[Black "Anton_Demchenko"]
[Result "0-1"]
[WhiteElo "2546"]
[BlackElo "2868"]
[TimeControl "180+1"]
[EndTime "10:41:19 PDT"]
[Termination "Anton_Demchenko won on time"]

1. d4 {[%clk 0:02:59.9]} 1... Nf6 {[%clk 0:03:00.2]} 2. c4 {[%clk 0:03:00.3]}
2... d6 {[%clk 0:03:00.8]} 3. Nc3 {[%clk 0:03:00.8]} 3... e5 {[%clk 0:03:01.3]}
4. Nf3 {[%clk 0:03:01.1]} 4... Nc6 {[%clk 0:03:01.4]} 5. dxe5 {[%clk 0:02:51.9]}
5... dxe5 {[%clk 0:03:02.3]} 6. Qxd8+ {[%clk 0:02:52.8]} 6... Kxd8 {[%clk
0:03:02.9]} 7. Bg5 {[%clk 0:02:53.2]} 7... Be6 {[%clk 0:03:03.5]} 8. O-O-O+
{[%clk 0:02:49.1]} 8... Kc8 {[%clk 0:03:04]} 9. e3 {[%clk 0:02:48]} 9... Nd7
{[%clk 0:03:04.1]} 10. Nd5 {[%clk 0:02:45.5]} 10... f6 {[%clk 0:03:04.2]} 11.
Bh4 {[%clk 0:02:45.5]} 11... a5 {[%clk 0:03:00.2]} 12. a3 {[%clk 0:02:42.2]}
12... Nc5 {[%clk 0:02:59.5]} 13. Nd2 {[%clk 0:02:28.7]} 13... a4 {[%clk
0:02:47.2]} 14. Be2 {[%clk 0:02:26]} 14... Na5 {[%clk 0:02:42.5]} 15. g4 {[%clk
0:02:20.3]} 15... Bd6 {[%clk 0:02:14.5]} 16. h3 {[%clk 0:02:10.7]} 16... Bf7
{[%clk 0:02:12.8]} 17. f3 {[%clk 0:01:58]} 17... Kb8 {[%clk 0:01:47.1]} 18. e4
{[%clk 0:01:54.3]} 18... Nab3+ {[%clk 0:01:39]} 19. Nxb3 {[%clk 0:01:54]} 19...
Nxb3+ {[%clk 0:01:39.9]} 20. Kb1 {[%clk 0:01:54.5]} 20... Bc5 {[%clk 0:01:40.5]}
21. Rhf1 {[%clk 0:01:40.5]} 21... Nd4 {[%clk 0:01:34.4]} 22. Bd3 {[%clk
0:01:37]} 22... c6 {[%clk 0:01:29.2]} 23. Ne3 {[%clk 0:01:33.9]} 23... Ka7
{[%clk 0:01:07]} 24. Nf5 {[%clk 0:01:07.3]} 24... Ne6 {[%clk 0:01:07.1]} 25. Bf2
{[%clk 0:01:00.9]} 25... Bxf2 {[%clk 0:00:59.1]} 26. Rxf2 {[%clk 0:01:01.8]}
26... Bg6 {[%clk 0:00:50.9]} 27. Rfd2 {[%clk 0:00:54]} 27... Kb6 {[%clk
0:00:48.9]} 28. h4 {[%clk 0:00:50.6]} 28... Rhd8 {[%clk 0:00:29.9]} 29. Bc2
{[%clk 0:00:47.2]} 29... Rxd2 {[%clk 0:00:28.3]} 30. Rxd2 {[%clk 0:00:48.1]}
30... Bxf5 {[%clk 0:00:20.2]} 31. exf5 {[%clk 0:00:49]} 31... Nc5 {[%clk
0:00:18.7]} 32. g5 {[%clk 0:00:44]} 32... Kc7 {[%clk 0:00:17.8]} 33. Rg2 {[%clk
0:00:38.1]} 33... Rd8 {[%clk 0:00:17.4]} 34. h5 {[%clk 0:00:38.4]} 34... fxg5
{[%clk 0:00:15.3]} 35. Rxg5 {[%clk 0:00:39.3]} 35... Rd7 {[%clk 0:00:15.7]} 36.
h6 {[%clk 0:00:14.8]} 36... gxh6 {[%clk 0:00:15.7]} 37. Rg8 {[%clk 0:00:15.3]}
37... Rf7 {[%clk 0:00:12.8]} 38. Re8 {[%clk 0:00:11.9]} 38... Kd6 {[%clk
0:00:10.8]} 39. Rd8+ {[%clk 0:00:04.1]} 39... Ke7 {[%clk 0:00:11.1]} 40. Rd1
{[%clk 0:00:04]} 40... Kf6 {[%clk 0:00:10.3]} 41. Rh1 {[%clk 0:00:03.5]} 41...
Kg5 {[%clk 0:00:10.5]} 42. Kc1 {[%clk 0:00:03.4]} 42... Rf6 {[%clk 0:00:09.8]}
43. Kd2 {[%clk 0:00:03.7]} 43... Kf4 {[%clk 0:00:09.9]} 44. Rh3 {[%clk
0:00:02.8]} 44... h5 {[%clk 0:00:07.8]} 45. Ke2 {[%clk 0:00:03]} 45... Kg5
{[%clk 0:00:08.2]} 46. Ke3 {[%clk 0:00:03]} 46... h4 {[%clk 0:00:08.3]} 47. Rh1
{[%clk 0:00:03]} 47... Kh5 {[%clk 0:00:05]} 48. Rg1 {[%clk 0:00:03.4]} 48... h3
{[%clk 0:00:05]} 49. Kf2 {[%clk 0:00:03.9]} 49... Kh4 {[%clk 0:00:05.2]} 50.
Rg4+ {[%clk 0:00:04.2]} 50... Kh5 {[%clk 0:00:05.7]} 51. Kg3 {[%clk 0:00:05.1]}
51... Rd6 {[%clk 0:00:05.3]} 52. Kxh3 {[%clk 0:00:04.2]} 52... Rd2 {[%clk
0:00:05.2]} 53. f6 {[%clk 0:00:03.4]} 53... Rd7 {[%clk 0:00:02.8]} 54. Bf5
{[%clk 0:00:01.4]} 54... Rf7 {[%clk 0:00:02.3]} 55. Rh4+ {[%clk 0:00:01.7]}
55... Kg5 {[%clk 0:00:02.6]} 56. Rxh7 {[%clk 0:00:02.2]} 56... Kxf6 {[%clk
0:00:02.5]} 0-1